Cogmind - Beta 14 @@@ ROGUE MODE // 2024.09.29 @ 21:23:31 Player: star Result: Destroyed by Y-45 Defender with Heavy Assault Rifle Performance ------------- Evolutions (2) 1000 Regions Visited (9) 1800 Robots Destroyed (87) 435 Value Destroyed (2598) 2598 Prototype IDs (5) 100 Alien Tech Used (0) 0 Bonus (391) 391 TOTAL SCORE: 6324 Bonus ------- High Alert Combat Kills 303 Entered Garrisons 200 Friendly Fire -112 Cogmind --------- Core Integrity 0/550 Matter 290/300 Energy 276/280 System Corruption 0% Temperature Cool (11) Movement Treading (160) Location -8/Storage Parts ------- > --- POWER (1) -------- Heavy Ion Engine > --- PROPULSION (2) --- Light Treads Light Treads > --- UTILITY (5) ------ Improved Heat Sink Large Storage Unit Machine Analyzer Particle Charger > --- WEAPON (3) ------- Heavy EM Shotgun Advanced Beam Rifle Advanced Beam Rifle > --- INVENTORY (15) --- Cooled Ion Engine Light Treads Light Treads Light Treads Aluminum Leg Compact Wheel Improved Heat Sink Improved Heat Sink Improved Sensor Array Particle Charger Particle Charger Improved Power Shielding Hardened Medium Armor Plating Improved Grenade Launcher Improved Grenade Launcher Peak State ------------ > --- POWER ------------ Improved Deuterium Engine > --- PROPULSION ------- Light Treads Light Treads > --- UTILITY ---------- Improved Heat Sink Large Storage Unit Machine Analyzer Particle Charger Light Armor Plating > --- WEAPON ----------- Heavy EM Shotgun Advanced Beam Rifle Advanced Beam Rifle > --- INVENTORY -------- Light Nuclear Core Light Treads Light Treads Light Treads Aluminum Leg Compact Wheel Improved Heat Sink Improved Heat Sink Improved Sensor Array Particle Charger Particle Charger Improved Power Shielding Hardened Medium Armor Plating Heavy EM Shotgun Rocket Launcher [Rating: 32] Favorites ----------- Power Ion Engine Engine Ion Engine Power Core Light Nuclear Core Propulsion Light Treads Treads Light Treads Leg Improved Aluminum Leg Wheel Wheel Utility Improved Heat Sink Device Improved Heat Sink Storage Large Storage Unit Processor Targeting Computer Protection Light Armor Plating Weapon Advanced Beam Cannon Energy Gun Pulse Rifle Energy Cannon Advanced Beam Cannon Ballistic Gun Light Assault Rifle Launcher Missile Launcher Impact Weapon Great Maul Slashing Weapon Ripper Build | -11 -10 -10 -9 -9 -9 -8 -8 -8 -8 ------- Run | Yrd Mat Min Mat Min Exi Min Mat Gar Sto Slots Evolved 4 | . . . 2 . . . 2 . . Power . | . . . . . . . . . . Propulsion . | . . . . . . . . . . Utility 3 | . . . 2 . . . 1 . . Weapon 1 | . . . . . . . 1 . . Parts Attached 79 | 6 9 7 4 2 1 7 4 31 8 Power 13 | 1 3 . . . . 2 1 4 2 Engine 11 | 1 3 . . . . 1 1 3 2 Core 2 | . . . . . . 1 . 1 . Reactor . | . . . . . . . . . . Propulsion 14 | 2 . 1 . . . . . 11 . Treads 5 | . . . . . . . . 5 . Leg 6 | . . . . . . . . 6 . Wheel 3 | 2 . 1 . . . . . . . Hover . | . . . . . . . . . . Flight . | . . . . . . . . . . Utility 19 | 1 1 . 2 . 1 2 2 9 1 Device 10 | . 1 . 1 . . 1 2 5 . Storage 3 | 1 . . . . 1 . . 1 . Processor 3 | . . . 1 . . 1 . . 1 Hackware . | . . . . . . . . . . Protection 3 | . . . . . . . . 3 . Artifact . | . . . . . . . . . . Weapon 33 | 2 5 6 2 2 . 3 1 7 5 Energy Gun 8 | . . . 1 . . . 1 1 5 Energy Cannon 7 | . . 2 1 1 . 2 . 1 . Ballistic Gun 10 | 2 3 2 . . . . . 3 . Ballistic Cannon . | . . . . . . . . . . Launcher 5 | . 1 2 . 1 . 1 . . . Special Weapon . | . . . . . . . . . . Impact Weapon 1 | . . . . . . . . 1 . Slashing Weapon 2 | . 1 . . . . . . 1 . Piercing Weapon . | . . . . . . . . . . Special Melee Weapon . | . . . . . . . . . . Unidentified Prototypes 5 | . . . 1 . . . . . 4 Parts Lost 15 | . . . . 1 . 4 . 7 3 Power 1 | . . . . . . 1 . . . Propulsion 3 | . . . . 1 . . . 2 . Utility 3 | . . . . . . 1 . 1 1 Weapon 8 | . . . . . . 2 . 4 2 Highest Loss Streak 4 | . . . . 1 . 4 . 3 2 To Critical Strikes . | . . . . . . . . . . Average Slot Usage (%) 92 | . 96 100 88 89 88 86 90 88 97 Engine 10 | . 14 14 11 11 11 2 8 8 9 Treads 5 | . . . . . . . . 6 18 Leg 3 | . . . . . . . . 10 . Wheel 9 | . 28 28 22 12 11 11 9 . . Device 18 | . 10 14 21 22 22 20 27 20 18 Storage 10 | . 14 14 11 11 11 11 9 8 9 Processor 4 | . . . . 11 11 11 9 5 4 Protection 3 | . . . . . . . . 3 12 Energy Gun 7 | . . . 10 11 11 1 9 4 20 Energy Cannon 7 | . . 6 11 11 11 20 18 10 . Ballistic Gun 8 | . 26 20 . . . . . 4 3 Slashing Weapon 1 | . . . . . . . . 3 1 Peak Build Rating 32 | 6 9 12 19 19 18 20 26 29 32 Average Rating 20 | 4 8 10 16 18 18 18 25 24 28 On Entrance 15 | . 6 9 12 19 18 18 20 26 26 Naked Turns 8 | . . . . . . . . 8 . Heaviest Build 50 | 11 13 18 21 19 34 35 45 49 50 Greatest Support 40 | 20 20 26 26 26 16 16 16 40 40 Greatest Overweight (x) 4 | . . . . 1 2 2 2 4 1 Average Overweight (x) . | . . . . . 1 2 2 . . Largest Inventory Capacity 15 | 8 8 8 8 8 15 15 15 15 15 Average Capacity 12 | 6 8 8 8 8 8 15 15 14 15 Most Carried 15 | . 8 8 8 8 8 9 9 15 15 Average Carried 10 | . 6 7 7 8 8 6 8 11 14 Final Capacity 15 | 8 8 8 8 8 15 15 15 15 15 Final Carried 15 | . 8 8 8 8 8 9 9 15 15 Class Distribution -------------------- 45% | Scavenger-Mutant 21% | Mutant 18% | Scavenger-Gunner 8% | Gunner 6% | Scavenger-Tank Dominant Class ---------------- Mutant | -10/Materials Mutant | -10/Mines Mutant | -9/Materials Scavenger-Mutant | -9/Mines Scavenger-Mutant | -9/Exiles Scavenger-Mutant | -8/Mines Gunner | -8/Materials Scavenger-Mutant | -8/Garrison Scavenger-Tank | -8/Storage Resources | -11 -10 -10 -9 -9 -9 -8 -8 -8 -8 ----------- Run | Yrd Mat Min Mat Min Exi Min Mat Gar Sto Matter Collected 1343 | 194 280 161 33 65 . 99 45 304 162 Remotely . | . . . . . . . . . . Salvage Created 3700 | . 390 33 33 92 . 194 246 1366 1346 Parts 185 | . 30 8 1 5 . 13 14 51 63 Haulers Intercepted 6 | . 1 . 1 . . . . . 4 Recyclers Shooed 5 | . 2 . 1 . . . . . 2 Parts Field Recycled . | . . . . . . . . . . Retrieved Matter . | . . . . . . . . . . Parts Self-Destructed . | . . . . . . . . . . Prevented . | . . . . . . . . . . Kills | -11 -10 -10 -9 -9 -9 -8 -8 -8 -8 ------- Run | Yrd Mat Min Mat Min Exi Min Mat Gar Sto Combat Hostiles Destroyed 76 | . 13 6 . 8 . 4 3 27 15 Melee 4 | . . . . . . . . 4 . Guns 31 | . 10 . . . . 1 1 5 14 Cannons 24 | . . . . 1 . 3 2 18 . AOE 17 | . 3 6 . 7 . . . . 1 Classes Destroyed 11 | . 3 . . 2 . 4 1 . 1 Worker 1 | . . . . . . . . . 1 Builder 2 | . . . . . . 1 . . 1 Hauler 6 | . 1 . 1 . . . . . 4 Recycler 7 | . . . . . . 1 1 . 5 Swarmer 18 | . 6 6 . . . . . 3 3 Grunt 27 | . 7 . . 1 . 2 . 8 9 Brawler 4 | . . . . 1 . . . 3 . Duelist 3 | . . . . . . 1 . 1 1 Sentry 15 | . . . . . . . 3 10 2 Hunter 1 | . . . . . . 1 . . . Assembled 6 | . . . . 6 . . . . . Thug 1 | . . . . . . . . 1 . Savage 1 | . . . . . . . . 1 . Butcher 1 | . . . . . . . . 1 . Best Kill Streak 8 | . 6 3 1 8 . 3 3 4 6 Combat Bots Only 8 | . 4 3 . 8 . 3 3 4 5 Max Kills in Single Turn 5 | . 3 2 1 5 . 2 1 1 2 Gunslinging 1 | . . . . . . . . . 1 Exploded 5 | . 3 2 . 5 . . . . 1 Melee 1 | . . . . . . . . 1 . Uniques/NPCs Destroyed . | . . . . . . . . . . Combat | -11 -10 -10 -9 -9 -9 -8 -8 -8 -8 -------- Run | Yrd Mat Min Mat Min Exi Min Mat Gar Sto Hostile Shots Fired 280 | . 52 9 . 8 . 31 6 123 51 Missed 81 | . 18 4 . 2 . 10 2 28 17 Damage Taken 2934 | . 348 53 . 177 . 353 59 1370 574 Core 740 | . 69 9 . 42 . 67 13 471 69 Absorbed by Shields 4 | . . . . . . . . 4 . Core Remaining (%) 80 | 100 . 68 . . . 72 . . . Volleys Fired 207 | . 46 8 15 6 . 12 6 64 50 Largest 3 | . 2 1 2 2 . 2 3 3 3 Hottest 204 | . 40 60 123 131 . 136 199 204 172 Shots Fired 471 | . 91 8 30 10 1 22 18 158 133 Gun 297 | . 90 . 15 4 1 4 6 44 133 Cannon 162 | . . 2 15 4 . 15 12 114 . Launcher 12 | . 1 6 . 2 . 3 . . . Special . | . . . . . . . . . . Kinetic 114 | . 90 . . . . . . 8 16 Thermal 298 | . . 2 30 8 1 19 18 150 70 Explosive 12 | . 1 6 . 2 . 3 . . . Electromagnetic 47 | . . . . . . . . . 47 Robot Hit Streak 16 | . 7 2 4 4 . 11 6 16 14 Robot Miss Streak 7 | . 5 5 3 1 . 2 1 3 7 Penetration Max . | . . . . . . . . . . Secondary Targets 7 | . . . . . . . . . 7 Max Gunslinging Chain 1 | . . . . . . . . . 1 Shots Hit Robots 287 | . 55 2 16 6 . 14 11 107 76 Core Hits 141 | . 21 7 . 15 . 9 5 46 38 Critical Kills . | . . . . . . . . . . Critical Parts Destroyed 1 | . 1 . . . . . . . . Critical Strikes 9 | . 1 . . . . . . 3 5 Burn 5 | . . . . . . . . 1 4 Destroy 1 | . 1 . . . . . . . . Corrupt 1 | . . . . . . . . . 1 Sever 2 | . . . . . . . . 2 . Melee Attacks 18 | . 4 . . . . . . 14 . Impact . | . . . . . . . . . . Slashing 18 | . 4 . . . . . . 14 . Piercing . | . . . . . . . . . . Sneak Attacks 1 | . 1 . . . . . . . . Combat Hostiles . | . . . . . . . . . . Follow-up Attacks . | . . . . . . . . . . Damage Inflicted 6818 | . 736 380 298 508 . 503 237 2569 1587 Guns 2955 | . 523 . 207 32 . 50 95 565 1483 Cannons 2032 | . . . 91 20 . 184 142 1595 . Explosions 1312 | . 103 380 . 456 . 269 . . 104 Melee 502 | . 93 . . . . . . 409 . Ramming 17 | . 17 . . . . . . . . Kinetic 632 | . 523 . . . . . . 41 68 Thermal 3948 | . . . 298 158 . 234 237 2119 902 Explosive 1102 | . 103 380 . 350 . 269 . . . Electromagnetic 617 | . . . . . . . . . 617 Impact . | . . . . . . . . . . Slashing 502 | . 93 . . . . . . 409 . Piercing . | . . . . . . . . . . Highest Corruption 4 | . . . . 4 4 4 . . . Average Corruption 4 | . . . . 4 4 4 . . . Corruption Purged . | . . . . . . . . . . Corruption Blocked . | . . . . . . . . . . Effects 13 | . . . . 2 6 5 . . . Message Errors 3 | . . . . . 1 2 . . . Matter Fused 2 | . . . . 1 . 1 . . . Heat Flow Errors 2 | . . . . 1 1 . . . . Energy Discharges 3 | . . . . . 2 1 . . . Data Loss (major) 1 | . . . . . 1 . . . . Misfires 2 | . . . . . 1 1 . . . Overload Shots . | . . . . . . . . . . Overflow Damage 86 | . . 29 . 22 . 15 . 20 . Projectiles 27 | . . . . . . 7 . 20 . Explosions 59 | . . 29 . 22 . 8 . . . Melee . | . . . . . . . . . . Knockbacks . | . . . . . . . . . . Impact . | . . . . . . . . . . Kinetic . | . . . . . . . . . . Secondary . | . . . . . . . . . . Self-Inflicted Damage 236 | . 8 9 . 92 . 35 . . 92 Shots 6 | . . 1 . 2 . 1 . . 2 Rammed 1 | . 1 . . . . . . . . Targets Rammed 1 | . 1 . . . . . . . . Kicked . | . . . . . . . . . . Crushed . | . . . . . . . . . . Highest Temperature 362 | . 9 . . 120 74 57 216 306 362 Average Temperature 98 | . 7 . . 62 48 34 103 93 111 Received Heat Transfer 1083 | . 120 . . . . 126 36 531 270 Effects 3 | . . . . . . . . . 3 Interference 1 | . . . . . . . . . 1 Matter Decay 1 | . . . . . . . . . 1 Short Circuit 1 | . . . . . . . . . 1 Siege Activations . | . . . . . . . . . . Robots Corrupted . | . . . . . . . . . . Combat Hostiles . | . . . . . . . . . . Parts Fried 1 | . . . . . . . . . 1 Impact Corruptions . | . . . . . . . . . . Robots Melted 2 | . . . 1 . . . . 1 . Combat Hostiles . | . . . . . . . . . . Parts Melted 10 | . . . . . . 1 1 6 2 Heat Transferred 7146 | . . . 592 211 . 444 407 3716 1776 Parts Sabotaged . | . . . . . . . . . . Parts Stolen . | . . . . . . . . . . Parts Stripped . | . . . . . . . . . . Power Chain Reactions 2 | . . . . . . . . . 2 Alert | -11 -10 -10 -9 -9 -9 -8 -8 -8 -8 ------- Run | Yrd Mat Min Mat Min Exi Min Mat Gar Sto Peak Influence 823 | . 310 311 80 134 . 110 183 823 683 Initial 401 | . . 103 42 31 . . 42 118 401 Average 378 | . 208 207 58 126 . 77 71 548 530 Maximum Alert Level 3 | . 1 1 . . . . . 3 2 Low Security (%) 26 | 100 40 23 100 100 . 100 100 3 . Level 1 28 | . 59 76 . . . . . 28 . Level 2 32 | . . . . . . . . 36 100 Level 3 12 | . . . . . . . . 31 . Level 4 . | . . . . . . . . . . Level 5 . | . . . . . . . . . . High Security . | . . . . . . . . . . Max Security . | . . . . . . . . . . Squads Dispatched 10 | . 5 . 1 . . . 1 . 3 Investigation 2 | . 1 . . . . . . . 1 Extermination . | . . . . . . . . . . Reinforcement 7 | . 4 . 1 . . . . . 2 Assault . | . . . . . . . . . . Garrison 1 | . . . . . . . 1 . . Intercept . | . . . . . . . . . . Searches Triggered . | . . . . . . . . . . Construction Impeded . | . . . . . . . . . . Haulers Reinforced . | . . . . . . . . . . Active Scanning Responses . | . . . . . . . . . . Cargo Convoy Interrupts . | . . . . . . . . . . Stealth | -11 -10 -10 -9 -9 -9 -8 -8 -8 -8 --------- Run | Yrd Mat Min Mat Min Exi Min Mat Gar Sto Distress Signals 6 | . 3 . . . . . 1 . 2 Communications Jammed . | . . . . . . . . . . Distress Signals . | . . . . . . . . . . Times Spotted 103 | . 24 6 3 14 . 4 4 25 23 Peak Tracking Total 10 | . 5 3 3 10 . 3 3 5 5 Tactical Retreats 6 | . 2 . . . . . . 3 1 Traps | -11 -10 -10 -9 -9 -9 -8 -8 -8 -8 ------- Run | Yrd Mat Min Mat Min Exi Min Mat Gar Sto Traps Triggered 7 | . 2 . . . . . . 5 . Indirectly . | . . . . . . . . . . Trap Hack Attempts . | . . . . . . . . . . Triggered . | . . . . . . . . . . Disarmed . | . . . . . . . . . . Reprogrammed . | . . . . . . . . . . Reused . | . . . . . . . . . . Traps Extracted . | . . . . . . . . . . Installed . | . . . . . . . . . . Triggered . | . . . . . . . . . . Machines | -11 -10 -10 -9 -9 -9 -8 -8 -8 -8 ---------- Run | Yrd Mat Min Mat Min Exi Min Mat Gar Sto Machines Disabled 6 | . 1 1 2 1 . . . . 1 Max in Single Turn 1 | . 1 1 1 1 . . . . 1 Machines Repaired . | . . . . . . . . . . Machines Dismantled . | . . . . . . . . . . Machines Sabotaged . | . . . . . . . . . . Overloaded Fab Kills . | . . . . . . . . . . Hacking | -11 -10 -10 -9 -9 -9 -8 -8 -8 -8 --------- Run | Yrd Mat Min Mat Min Exi Min Mat Gar Sto Machines Accessed 6 | . . 1 . . 1 . 2 1 1 Terminals 2 | . . . . . . . . 1 1 Fabricators . | . . . . . . . . . . Repair Stations . | . . . . . . . . . . Recycling Units . | . . . . . . . . . . Scanalyzers 1 | . . . . . . . 1 . . Garrison Access 1 | . . . . . . . 1 . . Total Hacks 9 | . . 1 . . 1 . 3 2 2 Successful 6 | . . 1 . . 1 . 2 1 1 Failed 3 | . . . . . . . 1 1 1 Catastrophic 1 | . . . . . . . . . 1 Database Lockouts . | . . . . . . . . . . Manual . | . . . . . . . . . . Terminals 4 | . . . . . . . . 2 2 Fabricators . | . . . . . . . . . . Repair Stations . | . . . . . . . . . . Recycling Units . | . . . . . . . . . . Scanalyzers 2 | . . . . . . . 2 . . Garrison Access 1 | . . . . . . . 1 . . Terminal Hacks 4 | . . 1 . . 1 . . 1 1 Record 1 | . . . . . 1 . . . . Open Door 3 | . . 1 . . . . . 1 1 Fabricator Hacks . | . . . . . . . . . . Repair Station Hacks . | . . . . . . . . . . Recycling Unit Hacks . | . . . . . . . . . . Scanalyzer 1 | . . . . . . . 1 . . Insert Component 1 | . . . . . . . 1 . . Garrison Access Hacks 1 | . . . . . . . 1 . . Unlock Access 1 | . . . . . . . 1 . . Unauthorized Hacks . | . . . . . . . . . . Terminals . | . . . . . . . . . . Fabricators . | . . . . . . . . . . Repair Stations . | . . . . . . . . . . Recycling Units . | . . . . . . . . . . Scanalyzers . | . . . . . . . . . . Garrison Access . | . . . . . . . . . . Data Cores Recovered . | . . . . . . . . . . Used . | . . . . . . . . . . Hacking Detections 3 | . . . . . . . 1 1 1 Full Trace Events 1 | . . . . . . . . . 1 Feedback Events . | . . . . . . . . . . Feedback Blocked . | . . . . . . . . . . Robot Schematics Acquired . | . . . . . . . . . . Robots Built . | . . . . . . . . . . Authchips . | . . . . . . . . . . Time . | . . . . . . . . . . Total Robot Build Rating . | . . . . . . . . . . Part Schematics Acquired . | . . . . . . . . . . Parts Built . | . . . . . . . . . . Authchips . | . . . . . . . . . . Time . | . . . . . . . . . . Total Part Build Rating . | . . . . . . . . . . Parts Repaired . | . . . . . . . . . . Time . | . . . . . . . . . . Parts Recycled . | . . . . . . . . . . Recycled Matter . | . . . . . . . . . . Retrieved Matter . | . . . . . . . . . . Retrieved Components . | . . . . . . . . . . Parts Scanalyzed 1 | . . . . . . . 1 . . Part Schematics Acquired . | . . . . . . . . . . Parts Damaged 1 | . . . . . . . 1 . . Bothacking | -11 -10 -10 -9 -9 -9 -8 -8 -8 -8 ------------ Run | Yrd Mat Min Mat Min Exi Min Mat Gar Sto Used RIF Installer . | . . . . . . . . . . Robots Hacked . | . . . . . . . . . . Non-combat . | . . . . . . . . . . Combat . | . . . . . . . . . . Robot Hacks Applied . | . . . . . . . . . . Relay Couplers Released . | . . . . . . . . . . Fabnet Peak Effective % . | . . . . . . . . . . Robots Rewired 1 | . . . . . . . . 1 . Allies Hacked . | . . . . . . . . . . Hacks Repelled . | . . . . . . . . . . Allies | -11 -10 -10 -9 -9 -9 -8 -8 -8 -8 -------- Run | Yrd Mat Min Mat Min Exi Min Mat Gar Sto Total Allies 1 | . . . . . . . . 1 . Largest Group 1 | . . . . . . . . 1 . Highest-Rated Group 19 | . . . . . . . . 19 . Highest-Rated Ally 19 | . . . . . . . . 19 . Total Orders . | . . . . . . . . . . Ally Attacks . | . . . . . . . . . . Total Damage . | . . . . . . . . . . Kills . | . . . . . . . . . . Allies Corrupted . | . . . . . . . . . . Allies Melted . | . . . . . . . . . . Intel | -11 -10 -10 -9 -9 -9 -8 -8 -8 -8 ------- Run | Yrd Mat Min Mat Min Exi Min Mat Gar Sto Robot Analysis Total . | . . . . . . . . . . Derelict Logs Recovered 2 | . . 2 . . . . . . . Drone Launches . | . . . . . . . . . . Drone Recoveries . | . . . . . . . . . . Exploration | -11 -10 -10 -9 -9 -9 -8 -8 -8 -8 ------------- Run | Yrd Mat Min Mat Min Exi Min Mat Gar Sto Turns Passed 4650 | 34 660 460 182 97 355 212 179 1658 813 Spaces Moved 2692 | 31 504 464 139 62 304 119 117 674 278 Core 18 | 1 . . . . . . . 17 . Treads 502 | . . . . . . . . 224 278 Legs 395 | . . . . . . . . 395 . Wheels 1777 | 30 504 464 139 62 304 119 117 38 . Hover . | . . . . . . . . . . Flight . | . . . . . . . . . . Fastest Speed 50 | 50 80 80 90 90 115 130 130 50 160 Average Speed 135 | 79 80 85 90 114 116 130 130 196 228 Slowest Speed 400 | 80 80 90 90 115 130 130 130 400 240 Overloaded Moves . | . . . . . . . . . . Propulsion Burnouts . | . . . . . . . . . . Robots Hopped 1 | . . . . . . . . 1 . Cave-ins Triggered . | . . . . . . . . . . Exploration Rate (%) 39 | 3 86 80 13 27 58 27 14 47 37 Regions Visited 9 Branch Regions 5 Pre-discovered Areas 2 | . . 1 . . 1 . . . . Known Exits Taken 1 | . . . . . . . 1 . . Unknown Exits Taken 7 | 1 1 1 1 1 1 1 . . . Scrap Searched 1 | . . 1 . . . . . . . Spaces Dug 1 | . . 1 . . . . . . . Terrain Destroyed 147 | . 2 78 1 34 . 26 2 . 4 Melee . | . . . . . . . . . . Projectile 5 | . . 2 1 . . . 2 . . AOE 142 | . 2 76 . 34 . 26 . . 4 Terrain Rammed . | . . . . . . . . . . Walls Destroyed . | . . . . . . . . . . Machines Disabled . | . . . . . . . . . . Actions | -11 -10 -10 -9 -9 -9 -8 -8 -8 -8 --------- Run | Yrd Mat Min Mat Min Exi Min Mat Gar Sto Total 3261 | 37 672 524 166 76 305 153 129 847 352 Wait 205 | 1 100 30 2 7 . 13 2 45 5 Move 2682 | 30 503 463 138 61 303 118 117 671 278 Hop 1 | . . . . . . . . 1 . Pick Up 32 | . 6 7 4 . . 3 . 6 6 Fast Attach 26 | 6 3 . 1 . . 1 . 14 1 Attach 10 | . 1 . 1 . . 3 2 2 1 Detach 3 | . 2 . . . . . . 1 . Swap 43 | . 5 7 2 2 1 3 2 15 6 Drop 20 | . 1 9 3 . 1 . . 1 5 Fire 207 | . 46 8 15 6 . 12 6 64 50 Melee 18 | . 4 . . . . . . 14 . Ram 1 | . 1 . . . . . . . . Kick . | . . . . . . . . . . Crush . | . . . . . . . . . . Escape Stasis 10 | . . . . . . . . 10 . Rewire 3 | . . . . . . . . 3 . Trap . | . . . . . . . . . . Miscellaneous . | . . . . . . . . . . Route ------- -11/Scrapyard -10/Materials (discovered 4 exits: [*Mat x3] / *Min) -10/Mines -9/Materials -9/Mines (discovered 2 exits: *Exi / [Zio]) -9/Exiles -8/Mines -8/Materials -8/Garrison -8/Storage History --------- Turn | Location | Event 12 | -11/Scrapyard | Discovered new exit (range 16) 35 | -11/Scrapyard | Entered Materials 154 | -10/Materials | Discovered new exit (range 13) 311 | -10/Materials | Build established: Mutant 342 | -10/Materials | Discovered new exit (range 16) 532 | -10/Materials | Discovered new exit (range 11) 682 | -10/Materials | Discovered new exit (range 16) 695 | -10/Materials | Entered Mines 720 | -10/Mines | Received a Rocket Launcher from a helpful Derelict 782 | -10/Mines | Learned Materials security intel 872 | -10/Mines | Build established: Scavenger-Mutant 894 | -10/Mines | Met a Derelict who couldn't figure out how to use a Trap Extractor 1146 | -10/Mines | Discovered new exit (range 10) 1155 | -10/Mines | Entered Materials 1155 | -9/Materials | Evolved 2 slots: Utility x2 1212 | -9/Materials | Discovered new exit (range 6) 1226 | -9/Materials | Build established: Mutant 1337 | -9/Materials | Entered Mines 1338 | -9/Mines | Assembled infested the area 1356 | -9/Mines | Met 8R-AWN 1375 | -9/Mines | Destroyed 8 combat bots 1393 | -9/Mines | A Derelict revealed a hidden shortcut to a safe place 1429 | -9/Mines | Discovered new exit (range 5) 1434 | -9/Mines | Entered Exiles 1476 | -9/Exiles | Welcomed by 8R-AWN 1498 | -9/Exiles | Met EX-HEX 1529 | -9/Exiles | Met EX-BIN 1561 | -9/Exiles | Met EX-DEC 1567 | -9/Exiles | Learned location of Zion (-7) 1586 | -9/Exiles | Build established: Scavenger-Mutant 1722 | -9/Exiles | Discovered new exit (range 11) 1789 | -9/Exiles | Entered Mines 1856 | -8/Mines | Lost 4 parts (1p1u2w) 1985 | -8/Mines | Discovered new exit (range 13) 2001 | -8/Mines | Entered Materials 2001 | -8/Materials | Evolved 2 slots: Utility x1, Weapon x1 2146 | -8/Materials | Garrison activated, responded to threat 2180 | -8/Materials | Identified exit to Garrison 2180 | -8/Materials | Entered Garrison 2395 | -8/Garrison | Triggered checkpoint 2512 | -8/Garrison | Triggered checkpoint 2575 | -8/Garrison | Build established: Scavenger-Gunner 2694 | -8/Garrison | Triggered checkpoint 2797 | -8/Garrison | Triggered checkpoint 2916 | -8/Garrison | Triggered checkpoint 3235 | -8/Garrison | Discovered new exit (range 14) 3251 | -8/Garrison | Core integrity fell below 50% 3251 | -8/Garrison | Released all parts (7) 3280 | -8/Garrison | Lost 3 parts (2n1w) 3296 | -8/Garrison | Core integrity fell below 20% 3641 | -8/Garrison | Build established: Scavenger-Mutant 3838 | -8/Garrison | Entered Storage 4651 | -8/Storage | Destroyed by Y-45 Defender with Heavy Assault Rifle Last Messages --------------- 04596_ R-06 Scavenger collects Lgt. Armor Plating. 04597_ >> Machine Analyzer network decryption results: 04597_ Terminal x1 04598_ K-01 Serf collects debris. 04599_ Acquired Imp. Grenade Launcher. 04601_ K-01 Serf collects debris. 04601_ Dropped Rocket Launcher. 04601_ Acquired Imp. Grenade Launcher. 04601_ U-05 Engineer destroyed. 04604_ K-01 Serf collects debris. 04615_ A-02 Transporter destroyed. 04616_ K-01 Serf collects debris. 04622_ Acquired Prototype Engine. 04622_ Identified Hvy. Ion Engine. 04623_ K-01 Serf collects debris. 04625_ R-06 Scavenger collects Welding Torch. 04626_ K-01 Serf collects debris. 04627_ >> Machine Analyzer network decryption results: 04627_ Terminal x3 04628_ R-06 Scavenger collects Lgt. Treads. Map ----- +----------------------------------------------------+ | ?????????????????????????????????????????????? | | ?????????????????????????????????????????????? | | ?????????????????????????????????????????????? | | ?????????????????????????????????????????????? | | ?????????????????????????????????????????????? | | ?????????????????????????????????????????????? | | ?????????????????????????????????????????????? | | ?????????????????????????????????????????????? | | ?????????????????????????????????????????????? | | ?????????????????????????????????????????????? | | ?????????????????????????????????????????????? | | ?????????????????????????????????????????????? | | ?????????????????????????????????????????????? | | ??"T"????????????????????????????????????????? | | ?????????????????????????????????????????????? | | ?????????????????????? ????????????????????? | | ?????????????????????? ????????????????????? | | ?????????????????????? ????????????????????? | | ?????????????????????? ????????????????????? | | ?????????????????????? ????????????????????? | | ?????????????????????? ????????????????????? | | ?????"T"??????????????#+#????????????????????? | | ?????"""???## ??????### ##???????????????????? | | ???????????# ##### u +???????????????????? | | ???????????# #???????????????????? | | ???????????# Y @ T #???????????????????? | | ???????????# ##### #???????????????????? | | ????????????????????## ##???????????????????? | | ?????????????????????# #????????????????????? | | ?????????????????????# #????????????????????? | | ?????????????????????# #????????????????????? | | ?????????????????????# #????????????????????? | | ?????????????????????# #????????????????????? | | ?????????????????????# #????????????????????? | | ?????????????????????# #????????????????????? | | ?????????????????????# #????????###?????????? | | ?????????????????????# #????#####T##????????? | | ?????????????????????# #????#** * #??????### | | ?????????????????????# #????#*** #??????# | | ???????### ??????????# #????##### #??????# | | ???????# ######### ##########+######### | | ???????# = =*%[! **%*! # | | ???????+ =% *[[%= **** %[ + | | ???????# =*]! ! % ![ # | | ???????# #####/#########+##+#### # | | ???????##??????? ????# =%*#??# # | | ?????????????? ????# = !#??# % # | | ????????????#" ????# """"![]#??# ##+### | | ????????? #T !!?????#?"!%"%%%#### # ? | | ????????? #" !!???????"!!"!!%+[ %% # | +----------------------------------------------------+ Best States ------------- Heat Dissipation 59 Energy Generation 16 Energy Capacity 290 Matter Stores 300 Matter Capacity 300 Sight Range 16 Robot Scan Range 15 Terrain Scan Density 10 Armor Coverage 300 Evasion (%) 50 Targeting Accuracy 5 Recoil Reduction 2 Particle Charging 15 Item Schematics ----------------- None Robot Schematics ------------------ None Fabricated ------------ Nothing Alien Tech Used ----------------- None Achievements -------------- None Challenges ------------ None Game ------ Seed WeldingMetafieldRail Manual? 0 Play Time 00:38:13 Cumulative 106.4 hours Start 2024.09.29 @ 01:36:52 End 2024.09.29 @ 21:23:31 Sessions 3 Manual Loads 0 Difficulty Rogue Special Mode None Game No. 185 Rogue 185 Adventurer 0 Explorer 0 Win Type - Total 1 Types 1/0/0/0/0/0/0/0/0 Lore% 50 Gallery% 53 Achievement% 44 Wizard Run 0 Options --------- Layout 0 ASCII 0 Keyboard 1 Movement Numpad Keybinds 0 Fullscreen 2 Font 18/SmallcapsGlow Map View 76x50 Zoom Use 0% Tactical HUD 1 Map Filters NONE Filters NONE Steam 1 RUN: e869f1d2-790c-44b9-9be3-5ec4dc1f660a